[Event "December 19 Early 2023"]
[Site "https://www.chess.com"]
[Date "2023.12.19"]
[Round "6"]
[White "Dyachuk, Artem"]
[Black "Bettalli, Francesco"]
[Result "0-1"]
[Board "65"]
[TimeControl "180+1"]
[WhiteFideId "34107924"]
[BlackFideId "2816453"]
[WhiteElo "2244"]
[BlackElo "2226"]
[WhiteTeam "UKR"]
[BlackTeam "ITA"]
[WhiteClock "0:00:00"]
[BlackClock "0:00:43"]

1. e4 {[%clk 0:03:00]}  e5 {[%clk 0:02:57]} 2. Nf3 {[%clk 0:02:59]}  Nc6 {[%clk 0:02:58]} 3. Bb5 {[%clk 0:02:58]}  Nf6 {[%clk 0:02:57]} 4. O-O {[%clk 0:02:55]}  d6 {[%clk 0:02:53]} 5. c3 {[%clk 0:02:50]}  g6 {[%clk 0:02:50]} 6. d4 {[%clk 0:02:48]}  Bd7 {[%clk 0:02:50]} 7. d5 {[%clk 0:02:45]}  Ne7 {[%clk 0:02:49]} 8. Bxd7+ {[%clk 0:02:42]}  Qxd7 {[%clk 0:02:50]} 9. Re1 {[%clk 0:02:42]}  Bg7 {[%clk 0:02:50]} 10. c4 {[%clk 0:02:42]}  O-O {[%clk 0:02:50]} 11. Nc3 {[%clk 0:02:42]}  Ne8 {[%clk 0:02:49]} 12. Rb1 {[%clk 0:02:37]}  h6 {[%clk 0:02:49]} 13. b4 {[%clk 0:02:35]}  f5 {[%clk 0:02:44]} 14. c5 {[%clk 0:02:34]}  f4 {[%clk 0:02:44]} 15. Qb3 {[%clk 0:02:28]}  g5 {[%clk 0:02:44]} 16. c6 {[%clk 0:02:22]}  Qc8 {[%clk 0:02:44]} 17. cxb7 {[%clk 0:02:19]}  Qxb7 {[%clk 0:02:45]} 18. Nd2 {[%clk 0:02:17]}  Nf6 {[%clk 0:02:43]} 19. Nc4 {[%clk 0:02:15]}  Kh7 {[%clk 0:02:39]} 20. Na5 {[%clk 0:02:14]}  Qb6 {[%clk 0:02:39]} 21. Na4 {[%clk 0:02:13]}  Qb5 {[%clk 0:02:38]} 22. Bd2 {[%clk 0:02:13]}  g4 {[%clk 0:02:28]} 23. Rbc1 {[%clk 0:02:09]}  Rac8 {[%clk 0:02:27]} 24. Nc3 {[%clk 0:02:06]}  Qd7 {[%clk 0:02:25]} 25. Qa4 {[%clk 0:02:00]}  c6 {[%clk 0:02:20]} 26. dxc6 {[%clk 0:01:59]}  Nxc6 {[%clk 0:02:21]} 27. Nd5 {[%clk 0:01:39]}  Nxd5 {[%clk 0:02:13]} 28. exd5 {[%clk 0:01:38]}  Nb8 {[%clk 0:02:14]} 29. Qxd7 {[%clk 0:01:38]}  Nxd7 {[%clk 0:02:15]} 30. Nc6 {[%clk 0:01:38]}  Nb6 {[%clk 0:02:12]} 31. Nxa7 {[%clk 0:01:19]}  Ra8 {[%clk 0:02:12]} 32. Rc7 {[%clk 0:01:17]}  Nxd5 {[%clk 0:02:12]} 33. Rb7 {[%clk 0:01:16]}  Kg6 {[%clk 0:01:57]} 34. a4 {[%clk 0:01:09]}  Rf7 {[%clk 0:01:56]} 35. Rxf7 {[%clk 0:01:01]}  Kxf7 {[%clk 0:01:57]} 36. Nb5 {[%clk 0:01:01]}  Rxa4 {[%clk 0:01:55]} 37. Nxd6+ {[%clk 0:01:00]}  Ke6 {[%clk 0:01:42]} 38. Ne4 {[%clk 0:00:37]}  Bf8 {[%clk 0:01:40]} 39. b5 {[%clk 0:00:31]}  Kf5 {[%clk 0:01:39]} 40. f3 {[%clk 0:00:28]}  Ra2 {[%clk 0:01:34]} 41. h3 {[%clk 0:00:21]}  gxf3 {[%clk 0:01:33]} 42. gxf3 {[%clk 0:00:20]}  Rb2 {[%clk 0:01:29]} 43. Rc1 {[%clk 0:00:11]}  Rxb5 {[%clk 0:01:25]} 44. Rc6 {[%clk 0:00:11]}  Rb2 {[%clk 0:01:02]} 45. Kf2 {[%clk 0:00:08]}  Bb4 {[%clk 0:00:57]} 46. Ke2 {[%clk 0:00:03]}  Bxd2 {[%clk 0:00:55]} 47. Nxd2 {[%clk 0:00:04]}  Ne3 {[%clk 0:00:50]} 48. Kd3 {[%clk 0:00:01]}  Ng2 {[%clk 0:00:41]} 49. Ne4 {[%clk 0:00:01]}  Ne1+ {[%clk 0:00:42]} 50. Kc3 {[%clk 0:00:02]}  Rc2+ {[%clk 0:00:42]} 51. Kb3 {[%clk 0:00:00]}  Rxc6 {[%clk 0:00:43]} 0-1

[Event "December 19 Early 2023"]
[Site "https://www.chess.com"]
[Date "2023.12.19"]
[Round "6"]
[White "Martinez Ramirez, Lennis"]
[Black "Farahat, Ali"]
[Result "1/2-1/2"]
[Board "68"]
[TimeControl "180+1"]
[WhiteFideId "3509079"]
[BlackFideId "10600507"]
[WhiteElo "2405"]
[BlackElo "2254"]
[WhiteTeam "CUB"]
[BlackTeam "USA"]
[WhiteClock "0:00:03"]
[BlackClock "0:00:45"]

1. c4 {[%clk 0:02:53]}  c6 {[%clk 0:02:59]} 2. e4 {[%clk 0:02:52]}  d5 {[%clk 0:03:00]} 3. cxd5 {[%clk 0:02:52]}  cxd5 {[%clk 0:03:01]} 4. exd5 {[%clk 0:02:52]}  Nf6 {[%clk 0:03:01]} 5. Bb5+ {[%clk 0:02:52]}  Nbd7 {[%clk 0:03:01]} 6. Bc4 {[%clk 0:02:53]}  g6 {[%clk 0:03:00]} 7. Nc3 {[%clk 0:02:52]}  Bg7 {[%clk 0:03:00]} 8. Nge2 {[%clk 0:02:53]}  O-O {[%clk 0:03:00]} 9. Nf4 {[%clk 0:02:52]}  a6 {[%clk 0:02:59]} 10. a4 {[%clk 0:02:52]}  Nb6 {[%clk 0:02:53]} 11. d3 {[%clk 0:02:51]}  Bg4 {[%clk 0:02:41]} 12. Qb3 {[%clk 0:02:47]}  Rc8 {[%clk 0:02:40]} 13. h3 {[%clk 0:02:42]}  Bf5 {[%clk 0:02:37]} 14. Be3 {[%clk 0:02:33]}  Nxc4 {[%clk 0:02:30]} 15. dxc4 {[%clk 0:02:34]}  g5 {[%clk 0:02:28]} 16. Nfe2 {[%clk 0:02:31]}  Bd3 {[%clk 0:02:24]} 17. c5 {[%clk 0:02:31]}  Ne4 {[%clk 0:02:16]} 18. Nxe4 {[%clk 0:02:22]}  Bxe4 {[%clk 0:02:17]} 19. Rd1 {[%clk 0:02:19]}  Qa5+ {[%clk 0:01:56]} 20. Nc3 {[%clk 0:02:17]}  Bxg2 {[%clk 0:01:50]} 21. Rg1 {[%clk 0:02:13]}  Bf3 {[%clk 0:01:50]} 22. Rd3 {[%clk 0:02:09]}  g4 {[%clk 0:01:44]} 23. Qxb7 {[%clk 0:01:56]}  Rb8 {[%clk 0:01:39]} 24. Qxe7 {[%clk 0:01:13]}  Rxb2 {[%clk 0:01:39]} 25. Bd2 {[%clk 0:01:13]}  Rfb8 {[%clk 0:01:21]} 26. Rxf3 {[%clk 0:01:09]}  gxf3 {[%clk 0:01:12]} 27. Rxg7+ {[%clk 0:00:24]}  Kxg7 {[%clk 0:01:13]} 28. Bh6+ {[%clk 0:00:04]}  Kxh6 {[%clk 0:00:57]} 29. Qf6+ {[%clk 0:00:04]}  Kh5 {[%clk 0:00:48]} 30. Qf5+ {[%clk 0:00:04]}  Kh6 {[%clk 0:00:47]} 31. Qf6+ {[%clk 0:00:04]}  Kh5 {[%clk 0:00:47]} 32. Qf5+ {[%clk 0:00:03]}  Kh6 {[%clk 0:00:45]} 33. Qf6+ {[%clk 0:00:03]} 1/2-1/2

[Event "December 19 Early 2023"]
[Site "https://www.chess.com"]
[Date "2023.12.19"]
[Round "6"]
[White "Halkias, Stelios"]
[Black "Gong, Qianyun"]
[Result "1-0"]
[Board "70"]
[TimeControl "180+1"]
[WhiteFideId "4201809"]
[BlackFideId "8602425"]
[WhiteElo "2462"]
[BlackElo "2157"]
[WhiteTeam "GRE"]
[BlackTeam "SGP"]
[WhiteClock "0:00:09"]
[BlackClock "0:00:00"]

1. Nf3 {[%clk 0:03:00]}  d5 {[%clk 0:02:59]} 2. d4 {[%clk 0:03:01]}  Nf6 {[%clk 0:02:59]} 3. c4 {[%clk 0:03:01]}  c6 {[%clk 0:02:59]} 4. Nc3 {[%clk 0:03:01]}  dxc4 {[%clk 0:02:59]} 5. e4 {[%clk 0:03:00]}  b5 {[%clk 0:02:59]} 6. Be2 {[%clk 0:03:00]}  e6 {[%clk 0:02:55]} 7. O-O {[%clk 0:03:00]}  Bb7 {[%clk 0:02:46]} 8. Rb1 {[%clk 0:02:58]}  h6 {[%clk 0:02:42]} 9. b3 {[%clk 0:02:56]}  cxb3 {[%clk 0:02:40]} 10. Rxb3 {[%clk 0:02:51]}  Be7 {[%clk 0:02:34]} 11. Qc2 {[%clk 0:02:30]}  Nbd7 {[%clk 0:02:28]} 12. e5 {[%clk 0:02:30]}  Nd5 {[%clk 0:02:28]} 13. Nxd5 {[%clk 0:02:30]}  exd5 {[%clk 0:02:27]} 14. Nd2 {[%clk 0:02:22]}  O-O {[%clk 0:02:19]} 15. Rg3 {[%clk 0:02:20]}  f5 {[%clk 0:02:16]} 16. Nf3 {[%clk 0:01:56]}  Kh8 {[%clk 0:02:14]} 17. Rh3 {[%clk 0:01:49]}  Qe8 {[%clk 0:02:00]} 18. Bd3 {[%clk 0:01:38]}  Qg6 {[%clk 0:01:50]} 19. Re1 {[%clk 0:01:26]}  Nb6 {[%clk 0:01:25]} 20. e6 {[%clk 0:01:03]}  Nc4 {[%clk 0:01:20]} 21. Bf4 {[%clk 0:01:02]}  Rae8 {[%clk 0:01:05]} 22. Qc1 {[%clk 0:01:01]}  Kh7 {[%clk 0:00:57]} 23. Kh1 {[%clk 0:00:51]}  Bc8 {[%clk 0:00:48]} 24. Bxc4 {[%clk 0:00:27]}  bxc4 {[%clk 0:00:44]} 25. Ne5 {[%clk 0:00:27]}  Qxe6 {[%clk 0:00:37]} 26. Ng4 {[%clk 0:00:20]}  fxg4 {[%clk 0:00:28]} 27. Rxe6 {[%clk 0:00:18]}  Bxe6 {[%clk 0:00:29]} 28. Re3 {[%clk 0:00:18]}  Bf5 {[%clk 0:00:20]} 29. Be5 {[%clk 0:00:18]}  Bg5 {[%clk 0:00:18]} 30. Kg1 {[%clk 0:00:17]}  Bxe3 {[%clk 0:00:15]} 31. Qxe3 {[%clk 0:00:17]}  Bd3 {[%clk 0:00:16]} 32. h3 {[%clk 0:00:17]}  gxh3 {[%clk 0:00:15]} 33. Qxh3 {[%clk 0:00:17]}  Rf5 {[%clk 0:00:14]} 34. Qe3 {[%clk 0:00:15]}  c5 {[%clk 0:00:13]} 35. f4 {[%clk 0:00:15]}  cxd4 {[%clk 0:00:12]} 36. Qxd4 {[%clk 0:00:15]}  Be4 {[%clk 0:00:11]} 37. Qxa7 {[%clk 0:00:15]}  Rg8 {[%clk 0:00:10]} 38. g4 {[%clk 0:00:14]}  Rff8 {[%clk 0:00:09]} 39. Qd4 {[%clk 0:00:14]}  Ra8 {[%clk 0:00:09]} 40. g5 {[%clk 0:00:11]}  hxg5 {[%clk 0:00:08]} 41. Qe3 {[%clk 0:00:11]}  Kg6 {[%clk 0:00:08]} 42. f5+ {[%clk 0:00:10]}  Kf7 {[%clk 0:00:07]} 43. Qxg5 {[%clk 0:00:10]}  Rxa2 {[%clk 0:00:07]} 44. Qg6+ {[%clk 0:00:10]}  Ke7 {[%clk 0:00:06]} 45. Qe6+ {[%clk 0:00:11]}  Kd8 {[%clk 0:00:05]} 46. Qxg8+ {[%clk 0:00:11]}  Kd7 {[%clk 0:00:05]} 47. Qxg7+ {[%clk 0:00:11]}  Kc6 {[%clk 0:00:05]} 48. Qf6+ {[%clk 0:00:11]}  Kb5 {[%clk 0:00:05]} 49. Qd6 {[%clk 0:00:11]}  Rg2+ {[%clk 0:00:05]} 50. Kf1 {[%clk 0:00:11]}  c3 {[%clk 0:00:05]} 51. Qb8+ {[%clk 0:00:11]}  Kc4 {[%clk 0:00:05]} 52. Qc7+ {[%clk 0:00:11]}  Kb5 {[%clk 0:00:04]} 53. Qb7+ {[%clk 0:00:10]}  Kc4 {[%clk 0:00:04]} 54. Qc6+ {[%clk 0:00:10]}  Kb3 {[%clk 0:00:04]} 55. Qxc3+ {[%clk 0:00:10]}  Ka2 {[%clk 0:00:04]} 56. Qa1+ {[%clk 0:00:10]}  Kb3 {[%clk 0:00:04]} 57. Qc3+ {[%clk 0:00:10]}  Ka2 {[%clk 0:00:04]} 58. f6 {[%clk 0:00:10]}  Rc2 {[%clk 0:00:03]} 59. Qa1+ {[%clk 0:00:10]}  Kb3 {[%clk 0:00:03]} 60. f7 {[%clk 0:00:10]}  Bd3+ {[%clk 0:00:03]} 61. Kg1 {[%clk 0:00:10]}  Rc8 {[%clk 0:00:00]} 62. Qd4 {[%clk 0:00:09]} 1-0

[Event "December 19 Early 2023"]
[Site "https://www.chess.com"]
[Date "2023.12.19"]
[Round "6"]
[White "Deng, Henry"]
[Black "Liyanage, Ranindu Dilshan"]
[Result "1-0"]
[Board "71"]
[TimeControl "180+1"]
[WhiteFideId "30965454"]
[BlackFideId "9915834"]
[WhiteElo "2566"]
[BlackElo "2198"]
[WhiteTeam "USA"]
[BlackTeam "SRI"]
[WhiteClock "0:00:09"]
[BlackClock "0:00:02"]

1. e4 {[%clk 0:03:00]}  c5 {[%clk 0:02:56]} 2. Nc3 {[%clk 0:02:58]}  a6 {[%clk 0:02:53]} 3. g3 {[%clk 0:02:58]}  g6 {[%clk 0:02:51]} 4. d4 {[%clk 0:02:56]}  cxd4 {[%clk 0:02:49]} 5. Qxd4 {[%clk 0:02:50]}  Nf6 {[%clk 0:02:49]} 6. Bg2 {[%clk 0:02:48]}  Nc6 {[%clk 0:02:47]} 7. Qd3 {[%clk 0:02:48]}  d6 {[%clk 0:02:47]} 8. Nge2 {[%clk 0:02:47]}  Bg7 {[%clk 0:02:47]} 9. h3 {[%clk 0:02:45]}  O-O {[%clk 0:02:42]} 10. Be3 {[%clk 0:02:46]}  Ne5 {[%clk 0:02:42]} 11. Qd1 {[%clk 0:02:43]}  Nc4 {[%clk 0:02:40]} 12. Bc1 {[%clk 0:02:42]}  Be6 {[%clk 0:02:33]} 13. O-O {[%clk 0:02:40]}  Rc8 {[%clk 0:02:32]} 14. b3 {[%clk 0:02:38]}  Ne5 {[%clk 0:02:25]} 15. Bb2 {[%clk 0:02:34]}  b5 {[%clk 0:02:21]} 16. Nd4 {[%clk 0:02:28]}  Bd7 {[%clk 0:02:10]} 17. Nd5 {[%clk 0:02:08]}  e6 {[%clk 0:01:34]} 18. Ne3 {[%clk 0:01:22]}  Nc6 {[%clk 0:01:29]} 19. c4 {[%clk 0:01:18]}  Qb6 {[%clk 0:01:10]} 20. Ne2 {[%clk 0:00:28]}  Rfd8 {[%clk 0:01:03]} 21. Rc1 {[%clk 0:00:17]}  Ne5 {[%clk 0:00:58]} 22. Bd4 {[%clk 0:00:15]}  Qb8 {[%clk 0:00:53]} 23. f4 {[%clk 0:00:14]}  Nc6 {[%clk 0:00:51]} 24. Ba1 {[%clk 0:00:14]}  Qb6 {[%clk 0:00:51]} 25. Qd2 {[%clk 0:00:12]}  e5 {[%clk 0:00:25]} 26. Kh2 {[%clk 0:00:11]}  exf4 {[%clk 0:00:25]} 27. Nxf4 {[%clk 0:00:12]}  Ne5 {[%clk 0:00:22]} 28. Nfd5 {[%clk 0:00:10]}  Nxd5 {[%clk 0:00:22]} 29. Nxd5 {[%clk 0:00:11]}  Qb8 {[%clk 0:00:20]} 30. Ne7+ {[%clk 0:00:11]}  Kh8 {[%clk 0:00:20]} 31. Nxc8 {[%clk 0:00:12]}  Bxc8 {[%clk 0:00:20]} 32. cxb5 {[%clk 0:00:13]}  axb5 {[%clk 0:00:20]} 33. Bxe5 {[%clk 0:00:11]}  Bxe5 {[%clk 0:00:19]} 34. Rxf7 {[%clk 0:00:12]}  Be6 {[%clk 0:00:19]} 35. Re7 {[%clk 0:00:11]}  Bg8 {[%clk 0:00:16]} 36. Rcc7 {[%clk 0:00:12]}  d5 {[%clk 0:00:13]} 37. Rcd7 {[%clk 0:00:10]}  Bxg3+ {[%clk 0:00:13]} 38. Kh1 {[%clk 0:00:10]}  Rf8 {[%clk 0:00:12]} 39. Qb2+ {[%clk 0:00:09]}  d4 {[%clk 0:00:02]} 40. Qxd4+ {[%clk 0:00:09]} 1-0

[Event "December 19 Early 2023"]
[Site "https://www.chess.com"]
[Date "2023.12.19"]
[Round "6"]
[White "Adla, Diego"]
[Black "Tifferet, Shakked"]
[Result "1/2-1/2"]
[Board "73"]
[TimeControl "180+1"]
[WhiteFideId "100072"]
[BlackFideId "2811529"]
[WhiteElo "2377"]
[BlackElo "2142"]
[WhiteTeam "ARG"]
[BlackTeam "ISR"]
[WhiteClock "0:00:10"]
[BlackClock "0:00:04"]

1. e4 {[%clk 0:03:00]}  c5 {[%clk 0:02:59]} 2. Nf3 {[%clk 0:03:00]}  Nc6 {[%clk 0:02:59]} 3. d4 {[%clk 0:02:59]}  cxd4 {[%clk 0:03:00]} 4. Nxd4 {[%clk 0:02:59]}  e5 {[%clk 0:03:01]} 5. Nb5 {[%clk 0:02:51]}  Nf6 {[%clk 0:03:01]} 6. N1c3 {[%clk 0:02:44]}  a6 {[%clk 0:03:00]} 7. Nd6+ {[%clk 0:02:41]}  Bxd6 {[%clk 0:03:01]} 8. Qxd6 {[%clk 0:02:41]}  Qe7 {[%clk 0:03:02]} 9. Qxe7+ {[%clk 0:02:34]}  Kxe7 {[%clk 0:03:03]} 10. Bg5 {[%clk 0:02:34]}  Nd4 {[%clk 0:02:20]} 11. Nd5+ {[%clk 0:02:27]}  Kd6 {[%clk 0:02:09]} 12. Nxf6 {[%clk 0:02:21]}  Nxc2+ {[%clk 0:02:02]} 13. Kd2 {[%clk 0:02:18]}  Nxa1 {[%clk 0:02:00]} 14. Nd5 {[%clk 0:02:18]}  f6 {[%clk 0:01:56]} 15. Be3 {[%clk 0:02:18]}  b5 {[%clk 0:01:50]} 16. Bd3 {[%clk 0:02:00]}  Bb7 {[%clk 0:01:40]} 17. f3 {[%clk 0:01:55]}  Rac8 {[%clk 0:01:23]} 18. Rxa1 {[%clk 0:01:53]}  Bxd5 {[%clk 0:01:23]} 19. exd5 {[%clk 0:01:54]}  Kxd5 {[%clk 0:01:24]} 20. a3 {[%clk 0:01:54]}  Ke6 {[%clk 0:01:22]} 21. a4 {[%clk 0:01:53]}  Ra8 {[%clk 0:01:13]} 22. b4 {[%clk 0:01:40]}  d5 {[%clk 0:01:10]} 23. Bc5 {[%clk 0:01:40]}  f5 {[%clk 0:01:05]} 24. g3 {[%clk 0:01:32]}  h5 {[%clk 0:00:51]} 25. axb5 {[%clk 0:01:25]}  axb5 {[%clk 0:00:50]} 26. Ra5 {[%clk 0:01:26]}  Rhc8 {[%clk 0:00:32]} 27. Rxb5 {[%clk 0:01:22]}  e4 {[%clk 0:00:17]} 28. fxe4 {[%clk 0:01:11]}  fxe4 {[%clk 0:00:18]} 29. Be2 {[%clk 0:01:08]}  Ke5 {[%clk 0:00:15]} 30. Rb7 {[%clk 0:00:47]}  Ra2+ {[%clk 0:00:15]} 31. Ke1 {[%clk 0:00:33]}  Re8 {[%clk 0:00:12]} 32. Bxh5 {[%clk 0:00:23]}  Ra1+ {[%clk 0:00:10]} 33. Kd2 {[%clk 0:00:22]}  Rea8 {[%clk 0:00:07]} 34. b5 {[%clk 0:00:15]}  R8a2+ {[%clk 0:00:05]} 35. Kc3 {[%clk 0:00:16]}  Rc1+ {[%clk 0:00:03]} 36. Kb3 {[%clk 0:00:16]}  Rac2 {[%clk 0:00:03]} 37. Bb4 {[%clk 0:00:16]}  Kd4 {[%clk 0:00:01]} 38. Rd7 {[%clk 0:00:12]}  Rc4 {[%clk 0:00:01]} 39. Ba3 {[%clk 0:00:08]}  Rb1+ {[%clk 0:00:01]} 40. Bb2+ {[%clk 0:00:09]}  Ke3 {[%clk 0:00:01]} 41. Rxd5 {[%clk 0:00:08]}  Rc8 {[%clk 0:00:01]} 42. b6 {[%clk 0:00:08]}  Re1 {[%clk 0:00:01]} 43. Rb5 {[%clk 0:00:08]}  Rb8 {[%clk 0:00:01]} 44. b7 {[%clk 0:00:09]}  Rd1 {[%clk 0:00:02]} 45. Bxd1 {[%clk 0:00:09]}  Kd2 {[%clk 0:00:02]} 46. Bc2 {[%clk 0:00:08]}  e3 {[%clk 0:00:03]} 47. Be4 {[%clk 0:00:07]}  e2 {[%clk 0:00:02]} 48. Bc3+ {[%clk 0:00:08]}  Ke3 {[%clk 0:00:03]} 49. Bc6 {[%clk 0:00:08]}  Rd8 {[%clk 0:00:02]} 50. Re5+ {[%clk 0:00:09]}  Kf2 {[%clk 0:00:02]} 51. Re7 {[%clk 0:00:09]}  Rb8 {[%clk 0:00:02]} 52. Kc4 {[%clk 0:00:09]}  g6 {[%clk 0:00:01]} 53. Kc5 {[%clk 0:00:09]}  g5 {[%clk 0:00:02]} 54. Kb6 {[%clk 0:00:10]}  g4 {[%clk 0:00:03]} 55. Kc7 {[%clk 0:00:10]}  Rd8 {[%clk 0:00:04]} 56. Kxd8 {[%clk 0:00:10]}  e1=Q {[%clk 0:00:04]} 57. Rxe1 {[%clk 0:00:10]} 1/2-1/2

[Event "December 19 Early 2023"]
[Site "https://www.chess.com"]
[Date "2023.12.19"]
[Round "6"]
[White "Maatman, Nick"]
[Black "Kleinman, Michael"]
[Result "1-0"]
[Board "75"]
[TimeControl "180+1"]
[WhiteFideId "1040391"]
[BlackFideId "2609479"]
[WhiteElo "2700"]
[BlackElo "2287"]
[WhiteTeam "NED"]
[BlackTeam "CAN"]
[WhiteClock "0:00:10"]
[BlackClock "0:00:00"]

1. d4 {[%clk 0:02:55]}  Nf6 {[%clk 0:02:59]} 2. Nf3 {[%clk 0:02:56]}  d5 {[%clk 0:02:59]} 3. Bf4 {[%clk 0:02:55]}  e6 {[%clk 0:02:57]} 4. e3 {[%clk 0:02:54]}  Bd6 {[%clk 0:02:58]} 5. Nbd2 {[%clk 0:02:50]}  O-O {[%clk 0:02:58]} 6. Bd3 {[%clk 0:02:41]}  c5 {[%clk 0:02:57]} 7. dxc5 {[%clk 0:02:39]}  Bxc5 {[%clk 0:02:56]} 8. O-O {[%clk 0:02:38]}  Nc6 {[%clk 0:02:57]} 9. c4 {[%clk 0:02:37]}  Re8 {[%clk 0:02:56]} 10. Rc1 {[%clk 0:02:18]}  d4 {[%clk 0:02:52]} 11. exd4 {[%clk 0:02:08]}  Nxd4 {[%clk 0:02:53]} 12. Nxd4 {[%clk 0:01:53]}  Bxd4 {[%clk 0:02:53]} 13. Qc2 {[%clk 0:01:50]}  h6 {[%clk 0:02:48]} 14. Nf3 {[%clk 0:01:49]}  e5 {[%clk 0:02:24]} 15. Nxd4 {[%clk 0:01:48]}  exf4 {[%clk 0:02:23]} 16. Rcd1 {[%clk 0:01:32]}  Bg4 {[%clk 0:02:15]} 17. Ne2 {[%clk 0:01:18]}  Qc7 {[%clk 0:01:48]} 18. f3 {[%clk 0:01:18]}  Be6 {[%clk 0:01:36]} 19. Kh1 {[%clk 0:01:18]}  Rad8 {[%clk 0:01:34]} 20. a3 {[%clk 0:01:12]}  a5 {[%clk 0:00:57]} 21. Qc3 {[%clk 0:01:08]}  b6 {[%clk 0:00:55]} 22. Rfe1 {[%clk 0:01:05]}  Bc8 {[%clk 0:00:52]} 23. Nd4 {[%clk 0:00:51]}  Qc5 {[%clk 0:00:47]} 24. Rxe8+ {[%clk 0:00:50]}  Rxe8 {[%clk 0:00:47]} 25. b4 {[%clk 0:00:48]}  axb4 {[%clk 0:00:46]} 26. axb4 {[%clk 0:00:49]}  Qe7 {[%clk 0:00:45]} 27. Nc2 {[%clk 0:00:38]}  Rd8 {[%clk 0:00:38]} 28. Qe1 {[%clk 0:00:24]}  Qc7 {[%clk 0:00:31]} 29. h3 {[%clk 0:00:20]}  Nh5 {[%clk 0:00:30]} 30. Kh2 {[%clk 0:00:19]}  Be6 {[%clk 0:00:28]} 31. Bf1 {[%clk 0:00:15]}  Ra8 {[%clk 0:00:23]} 32. Nd4 {[%clk 0:00:14]}  Bd7 {[%clk 0:00:14]} 33. Rc1 {[%clk 0:00:12]}  Re8 {[%clk 0:00:13]} 34. Qd2 {[%clk 0:00:12]}  Qe5 {[%clk 0:00:12]} 35. Nc2 {[%clk 0:00:09]}  Bc8 {[%clk 0:00:10]} 36. Re1 {[%clk 0:00:09]}  Bb7 {[%clk 0:00:03]} 37. Rxe5 {[%clk 0:00:09]}  Rxe5 {[%clk 0:00:04]} 38. Qd8+ {[%clk 0:00:09]}  Kh7 {[%clk 0:00:03]} 39. Bd3+ {[%clk 0:00:10]}  g6 {[%clk 0:00:00]} 40. Qd7 {[%clk 0:00:10]} 1-0

[Event "December 19 Early 2023"]
[Site "https://www.chess.com"]
[Date "2023.12.19"]
[Round "6"]
[White "Cieslak, Patryk"]
[Black "Estrada Nieto, Julian"]
[Result "0-1"]
[Board "76"]
[TimeControl "180+1"]
[WhiteFideId "21078882"]
[BlackFideId "5101018"]
[WhiteElo "2149"]
[BlackElo "2161"]
[WhiteTeam "POL"]
[BlackTeam "ESP"]
[WhiteClock "0:00:00"]
[BlackClock "0:00:27"]

1. c4 {[%clk 0:03:00]}  e5 {[%clk 0:02:11]} 2. Nc3 {[%clk 0:02:56]}  Nf6 {[%clk 0:02:11]} 3. Nf3 {[%clk 0:02:57]}  Nc6 {[%clk 0:02:11]} 4. e4 {[%clk 0:02:57]}  Bb4 {[%clk 0:02:10]} 5. d3 {[%clk 0:02:54]}  d6 {[%clk 0:02:10]} 6. a3 {[%clk 0:02:46]}  Bc5 {[%clk 0:02:09]} 7. Be2 {[%clk 0:02:45]}  a6 {[%clk 0:02:08]} 8. O-O {[%clk 0:02:45]}  O-O {[%clk 0:02:07]} 9. b4 {[%clk 0:02:45]}  Ba7 {[%clk 0:02:07]} 10. Bg5 {[%clk 0:02:44]}  h6 {[%clk 0:02:05]} 11. Bxf6 {[%clk 0:02:44]}  Qxf6 {[%clk 0:02:05]} 12. Nd5 {[%clk 0:02:44]}  Qd8 {[%clk 0:02:06]} 13. Nd2 {[%clk 0:02:44]}  Nd4 {[%clk 0:02:05]} 14. Bg4 {[%clk 0:02:44]}  c6 {[%clk 0:02:01]} 15. Bxc8 {[%clk 0:02:42]}  Rxc8 {[%clk 0:02:01]} 16. Ne3 {[%clk 0:02:42]}  g6 {[%clk 0:01:52]} 17. Kh1 {[%clk 0:02:38]}  f5 {[%clk 0:01:43]} 18. exf5 {[%clk 0:02:36]}  gxf5 {[%clk 0:01:44]} 19. Qh5 {[%clk 0:02:31]}  Qg5 {[%clk 0:01:42]} 20. Qh3 {[%clk 0:02:31]}  Kh7 {[%clk 0:01:25]} 21. Nf3 {[%clk 0:02:28]}  Qf4 {[%clk 0:01:09]} 22. Nxd4 {[%clk 0:02:22]}  Bxd4 {[%clk 0:01:09]} 23. Rae1 {[%clk 0:02:23]}  Rf7 {[%clk 0:01:00]} 24. Qh5 {[%clk 0:02:15]}  Rcf8 {[%clk 0:00:57]} 25. Nc2 {[%clk 0:02:03]}  Ba7 {[%clk 0:00:54]} 26. Ne3 {[%clk 0:01:30]}  Bd4 {[%clk 0:00:50]} 27. g3 {[%clk 0:01:30]}  Qg5 {[%clk 0:00:46]} 28. Qxg5 {[%clk 0:01:30]}  hxg5 {[%clk 0:00:46]} 29. Nc2 {[%clk 0:01:31]}  Ba7 {[%clk 0:00:45]} 30. f3 {[%clk 0:01:27]}  f4 {[%clk 0:00:39]} 31. Kg2 {[%clk 0:01:25]}  Kg6 {[%clk 0:00:38]} 32. Re4 {[%clk 0:01:09]}  Bb6 {[%clk 0:00:33]} 33. g4 {[%clk 0:00:31]}  Re7 {[%clk 0:00:30]} 34. Rfe1 {[%clk 0:00:29]}  Rfe8 {[%clk 0:00:30]} 35. d4 {[%clk 0:00:00]}  Kf6 {[%clk 0:00:27]} 0-1

[Event "December 19 Early 2023"]
[Site "https://www.chess.com"]
[Date "2023.12.19"]
[Round "6"]
[White "Korchynskyi, Mykola"]
[Black "Aaditya Dhingra"]
[Result "0-1"]
[Board "80"]
[TimeControl "180+1"]
[WhiteFideId "34138005"]
[BlackFideId "25678191"]
[WhiteElo "2007"]
[BlackElo "2269"]
[WhiteTeam "UKR"]
[BlackTeam "IND"]
[WhiteClock "0:00:13"]
[BlackClock "0:01:02"]

1. d4 {[%clk 0:03:00]}  d6 {[%clk 0:02:58]} 2. c4 {[%clk 0:03:01]}  Nf6 {[%clk 0:02:56]} 3. Nc3 {[%clk 0:03:00]}  Bf5 {[%clk 0:02:57]} 4. Nf3 {[%clk 0:02:57]}  Nbd7 {[%clk 0:02:56]} 5. Bf4 {[%clk 0:02:56]}  h6 {[%clk 0:02:55]} 6. e3 {[%clk 0:02:57]}  e6 {[%clk 0:02:53]} 7. Bd3 {[%clk 0:02:57]}  Bxd3 {[%clk 0:02:52]} 8. Qxd3 {[%clk 0:02:58]}  Be7 {[%clk 0:02:51]} 9. O-O-O {[%clk 0:02:55]}  Nh5 {[%clk 0:02:48]} 10. Rdg1 {[%clk 0:02:54]}  Nxf4 {[%clk 0:02:46]} 11. exf4 {[%clk 0:02:55]}  c6 {[%clk 0:02:39]} 12. g4 {[%clk 0:02:55]}  d5 {[%clk 0:02:39]} 13. c5 {[%clk 0:02:54]}  Qa5 {[%clk 0:02:31]} 14. f5 {[%clk 0:02:47]}  exf5 {[%clk 0:02:22]} 15. gxf5 {[%clk 0:02:47]}  Bf6 {[%clk 0:02:21]} 16. Re1+ {[%clk 0:02:40]}  Kd8 {[%clk 0:02:19]} 17. Kb1 {[%clk 0:02:37]}  Kc7 {[%clk 0:02:18]} 18. Re2 {[%clk 0:02:35]}  Rae8 {[%clk 0:02:16]} 19. Rhe1 {[%clk 0:02:35]}  Rxe2 {[%clk 0:02:15]} 20. Rxe2 {[%clk 0:02:36]}  Kd8 {[%clk 0:02:05]} 21. Qe3 {[%clk 0:02:33]}  Qb4 {[%clk 0:01:53]} 22. Qf4 {[%clk 0:02:18]}  Kc8 {[%clk 0:01:49]} 23. Qd6 {[%clk 0:02:13]}  Rd8 {[%clk 0:01:40]} 24. a3 {[%clk 0:01:44]}  Qa5 {[%clk 0:01:37]} 25. Qf4 {[%clk 0:01:42]}  Qc7 {[%clk 0:01:36]} 26. Qg4 {[%clk 0:01:40]}  Rf8 {[%clk 0:01:33]} 27. h4 {[%clk 0:01:37]}  Qd8 {[%clk 0:01:31]} 28. h5 {[%clk 0:01:37]}  Re8 {[%clk 0:01:31]} 29. Rxe8 {[%clk 0:01:05]}  Qxe8 {[%clk 0:01:32]} 30. Ka2 {[%clk 0:01:04]}  b6 {[%clk 0:01:28]} 31. cxb6 {[%clk 0:01:04]}  axb6 {[%clk 0:01:27]} 32. Qf4 {[%clk 0:01:04]}  Qe7 {[%clk 0:01:26]} 33. Qd2 {[%clk 0:01:03]}  Kb7 {[%clk 0:01:24]} 34. Qd3 {[%clk 0:00:52]}  b5 {[%clk 0:01:20]} 35. Qd2 {[%clk 0:00:44]}  Nb6 {[%clk 0:01:19]} 36. Qf4 {[%clk 0:00:42]}  Nc4 {[%clk 0:01:18]} 37. Nd2 {[%clk 0:00:37]}  Bg5 {[%clk 0:01:12]} 38. Qg4 {[%clk 0:00:18]}  Bxd2 {[%clk 0:01:09]} 39. Qxg7 {[%clk 0:00:18]}  Bxc3 {[%clk 0:01:08]} 40. f6 {[%clk 0:00:17]}  Qe2 {[%clk 0:01:05]} 41. Qxf7+ {[%clk 0:00:17]}  Kb6 {[%clk 0:01:04]} 42. Qa7+ {[%clk 0:00:18]}  Kxa7 {[%clk 0:01:04]} 43. f7 {[%clk 0:00:13]}  Qxb2# {[%clk 0:01:02]} 0-1